{"text_format":"3","workbook":"xlsx","n_sheets":26,"sheets":["Početak","1","2","3","4","5","6","7","8","9","10","11","12","13","14","15","16","17","18","19","20","21","22","23","24","Saznajte više"],"not_rendered":{"images":24,"defined_names":17,"pivot_tables":19},"read":"whole","date_system":"1900"}

{"sheet":"Početak","index":0,"n_rows":5,"n_cols":1,"rows_kept":5}
["Dobro došli\nUpute za čitače zaslona: Iskoristite sve prednosti zaokretnih tablica. Jednostavna zaokretna tablica pruža vam sveobuhvatni sažetak podataka, ali ponekad su vam potrebni detaljni odgovori na specifična pitanja. U tom vam slučaju pomaže dodavanje polja stupca i polja retka. \nUpute će vam reći do kojih se ćelija treba pomaknuti da biste koristili neku značajku ili će vas uputiti na daljnje čitanje.\nDa biste započeli, pritisnite CTRL + PAGE DOWN."]
["Iskoristite sve prednosti zaokretnih tablica"]
["Jednostavna zaokretna tablica pruža sveobuhvatni sažetak podataka,\nali ponekad su vam potrebni detaljni odgovori na specifična pitanja.\nU tom vam slučaju pomaže dodavanje polja stupca i polja retka."]
["DOBRO JE ZNATI\nJeste li pročitali prvi vodič? Ako niste, odaberite Datoteka > Novo i Stvaranje prve Zaokretne tablice."]
["Vratite se na vrh tako da pritisnete CTRL + HOME. Da biste pokrenuli vodič, pritisnite CTRL + PAGE DOWN."]

{"sheet":"1","index":1,"n_rows":16,"n_cols":9,"rows_kept":16}
["U prvom smo vam vodiču predstavili koncept zaokretne tablice. Objasnili smo i kako se polje retka može koristiti kao uvjet koji razlaže polje vrijednosti.   "]
["Ćelije od H10 do I14 sadrže zaokretnu tablicu koja sažima podatke u ćelijama od B8 do E16. Zaokretna tablica sadrži dva stupca: Kupac i Zbroj iznosa. Stupac Kupac sadrži vrijednosti Tata, Mama, Ivana i Ukupni zbroj, a stupac Zbroj iznosa sadrži vrijednosti 220 kn, 270 kn, 810 kn i 1.300 kn. Stupac Kupac sadrži polje retka, a stupac Zbroj iznosa sadrži polje vrijednosti."]
["Da biste prešli na sljedeći list vodiča, pritisnite CTRL + PAGE DOWN. Da biste se vratili na prethodni list, pritisnite CTRL + PAGE UP."]
[]
[]
[]
[]
[null,"Datum","Kupac","Vrsta","Iznos"]
["U ovom se primjeru pokazuje kako polje retka...","2017-01-01","Tata","Darovi",{"v":95,"d":"95 kn"}]
["...razlaže polje vrijednosti.","2017-01-15","Mama","Namirnice",{"v":325,"d":"325 kn"},null,null,"Kupac","Zbroj iznosa"]
[null,"2017-01-17","Mama","Ulaznice",{"v":250,"d":"250 kn"},null,null,"Tata",{"v":220,"d":"220 kn"}]
[null,"2017-01-21","Tata","Namirnice",{"v":125,"d":"125 kn"},null,null,"Ivana",{"v":270,"d":"270 kn"}]
[null,"2017-02-02","Mama","Namirnice",{"v":235,"d":"235 kn"},null,null,"Mama",{"v":810,"d":"810 kn"}]
[null,"2017-02-20","Ivana","Glazba",{"v":20,"d":"20 kn"},null,null,"Grand Total",{"v":1300,"d":"1,300 kn"}]
[null,"2017-02-25","Ivana","Ulaznice",{"v":125,"d":"125 kn"}]
[null,"2017-02-25","Ivana","Sport",{"v":125,"d":"125 kn"}]

{"sheet":"2","index":2,"n_rows":108,"n_cols":7,"rows_kept":108}
["No kada prvi put pogledate zaokretnu tablicu, mogli biste zaključiti da vam je potrebno više informacija."]
["Kada prvi put pogledate zaokretnu tablicu, mogli biste imati pitanja kao što su \"Kada su te kupnje izvršene?\", \"Na što je svaka osoba potrošila novac?\", \"Što je mama tako skupo kupila?\"."]
["U ovom slučaju ćelije od F11 do G15 prikazuju istu zaokretnu tablicu s dva stupca kao i prije. Stupac Kupac polje je retka i sadrži vrijednosti Tata, Mama, Ivana i Ukupni zbroj, a stupac Zbroj iznosa polje je vrijednosti i sadrži vrijednosti 220 kn, 270 kn, 810 kn i 1.300 kn. "]
["Da biste prešli na sljedeći list vodiča, pritisnite CTRL + PAGE DOWN. Da biste se vratili na prethodni list, pritisnite CTRL + PAGE UP."]
[]
[]
[]
[]
[]
[]
[{"$nulls":5},"Kupac","Zbroj iznosa"]
[{"$nulls":5},"Tata",{"v":220,"d":"220 kn"}]
[{"$nulls":5},"Ivana",{"v":270,"d":"270 kn"}]
[{"$nulls":5},"Mama",{"v":810,"d":"810 kn"}]
[{"$nulls":5},"Grand Total",{"v":1300,"d":"1,300 kn"}]
{"$rows_empty":84}
[null,"Datum","Kupac","Vrsta","Iznos"]
[null,"2017-01-01","Tata","Darovi",{"v":95,"d":"95 kn"}]
[null,"2017-01-15","Mama","Namirnice",{"v":325,"d":"325 kn"}]
[null,"2017-01-17","Mama","Ulaznice",{"v":250,"d":"250 kn"}]
[null,"2017-01-21","Tata","Namirnice",{"v":125,"d":"125 kn"}]
[null,"2017-02-02","Mama","Namirnice",{"v":235,"d":"235 kn"}]
[null,"2017-02-20","Ivana","Glazba",{"v":20,"d":"20 kn"}]
[null,"2017-02-25","Ivana","Ulaznice",{"v":125,"d":"125 kn"}]
[null,"2017-02-25","Ivana","Sport",{"v":125,"d":"125 kn"}]

{"sheet":"3","index":3,"n_rows":108,"n_cols":7,"rows_kept":108}
["To su sve dobra pitanja, ali usredotočimo se na samo jedno pitanje."]
["Na što je svaka osoba potrošila novac?"]
["U ovom slučaju ćelije od F11 do G15 prikazuju istu zaokretnu tablicu s dva stupca kao i prije. Stupac Kupac polje je retka i sadrži vrijednosti Tata, Mama, Ivana i Ukupni zbroj, a stupac Zbroj iznosa polje je vrijednosti i sadrži vrijednosti 220 kn, 270 kn, 810 kn i 1.300 kn. "]
["Da biste prešli na sljedeći list vodiča, pritisnite CTRL + PAGE DOWN. Da biste se vratili na prethodni list, pritisnite CTRL + PAGE UP."]
[]
[]
[]
[]
[]
[]
[{"$nulls":5},"Kupac","Zbroj iznosa"]
[{"$nulls":5},"Tata",{"v":220,"d":"220 kn"}]
[{"$nulls":5},"Ivana",{"v":270,"d":"270 kn"}]
[{"$nulls":5},"Mama",{"v":810,"d":"810 kn"}]
[{"$nulls":5},"Grand Total",{"v":1300,"d":"1,300 kn"}]
{"$rows_empty":84}
[null,"Datum","Kupac","Vrsta","Iznos"]
[null,"2017-01-01","Tata","Darovi",{"v":95,"d":"95 kn"}]
[null,"2017-01-15","Mama","Namirnice",{"v":325,"d":"325 kn"}]
[null,"2017-01-17","Mama","Ulaznice",{"v":250,"d":"250 kn"}]
[null,"2017-01-21","Tata","Namirnice",{"v":125,"d":"125 kn"}]
[null,"2017-02-02","Mama","Namirnice",{"v":235,"d":"235 kn"}]
[null,"2017-02-20","Ivana","Glazba",{"v":20,"d":"20 kn"}]
[null,"2017-02-25","Ivana","Ulaznice",{"v":125,"d":"125 kn"}]
[null,"2017-02-25","Ivana","Sport",{"v":125,"d":"125 kn"}]

{"sheet":"4","index":4,"n_rows":108,"n_cols":9,"rows_kept":108}
["Zadnje pitanje koje smo postavili bilo je \"Na što je svaka osoba potrošila novac?\"."]
["Na to smo pitanje odgovorili dodavanjem polja stupca za vrstu. Zaokretna tablica sada sadrži pet novih stupaca koji nam pokazuju vrstu kupnje koju je svaka osoba izvršila. "]
["Naša nova zaokretna tablica proteže se od ćelije C10 do ćelije I15 te sadrži stupce Kupac, Namirnice, Glazba, Sport, Ulaznice, Darovi i Ukupni zbroj. Kupac i Sveukupni zbroj isti su kao i prije, a između njih se nalaze novi stupci s pojedinostima."]
["Da biste prešli na sljedeći list vodiča, pritisnite CTRL + PAGE DOWN. Da biste se vratili na prethodni list, pritisnite CTRL + PAGE UP."]
[]
[]
[]
[]
[]
[null,null,"Zbroj iznosa","Vrsta"]
[null,null,"Kupac","Namirnice","Glazba","Sport","Ulaznice","Darovi","Grand Total"]
[null,null,"Tata",{"v":125,"d":"125 kn"},{"$nulls":3},{"v":95,"d":"95 kn"},{"v":220,"d":"220 kn"}]
[null,null,"Ivana",null,{"v":20,"d":"20 kn"},{"v":125,"d":"125 kn"},{"v":125,"d":"125 kn"},null,{"v":270,"d":"270 kn"}]
[null,null,"Mama",{"v":560,"d":"560 kn"},null,null,{"v":250,"d":"250 kn"},null,{"v":810,"d":"810 kn"}]
[null,null,"Grand Total",{"v":685,"d":"685 kn"},{"v":20,"d":"20 kn"},{"v":125,"d":"125 kn"},{"v":375,"d":"375 kn"},{"v":95,"d":"95 kn"},{"v":1300,"d":"1,300 kn"}]
{"$rows_empty":84}
[null,"Datum","Kupac","Vrsta","Iznos"]
[null,"2017-01-01","Tata","Darovi",{"v":95,"d":"95 kn"}]
[null,"2017-01-15","Mama","Namirnice",{"v":325,"d":"325 kn"}]
[null,"2017-01-17","Mama","Ulaznice",{"v":250,"d":"250 kn"}]
[null,"2017-01-21","Tata","Namirnice",{"v":125,"d":"125 kn"}]
[null,"2017-02-02","Mama","Namirnice",{"v":235,"d":"235 kn"}]
[null,"2017-02-20","Ivana","Glazba",{"v":20,"d":"20 kn"}]
[null,"2017-02-25","Ivana","Ulaznice",{"v":125,"d":"125 kn"}]
[null,"2017-02-25","Ivana","Sport",{"v":125,"d":"125 kn"}]

{"sheet":"5","index":5,"n_rows":108,"n_cols":9,"rows_kept":108}
["Ako je zaokretnu tablicu teško shvatiti, pokušajte sljedeće: čitajte s lijeve strane, zatim odozgo, a potom prema dolje. U primjeru u nastavku vrijednost Tata nalazi se u ćeliji C12, Namirnice za 125 kn nalazi se u ćeliji D12, Darovi za 95 kn u ćeliji E12, a Ukupni zbroj od 220 kn u ćeliji I12. Reci 13 i 14 prikazuju pojedinosti za vrijednosti Ivana i Mama, a redak 15 prikazuje Ukupni zbroj."]
["Da biste prešli na sljedeći list vodiča, pritisnite CTRL + PAGE DOWN. Da biste se vratili na prethodni list, pritisnite CTRL + PAGE UP."]
{"$rows_empty":7}
[null,null,"Zbroj iznosa","Vrsta"]
[null,null,"Kupac","Namirnice","Darovi","Glazba","Sport","Ulaznice","Grand Total"]
[null,null,"Tata",{"v":125,"d":"125 kn"},{"v":95,"d":"95 kn"},{"$nulls":3},{"v":220,"d":"220 kn"}]
[null,null,"Ivana",null,null,{"v":20,"d":"20 kn"},{"v":125,"d":"125 kn"},{"v":125,"d":"125 kn"},{"v":270,"d":"270 kn"}]
[null,null,"Mama",{"v":560,"d":"560 kn"},{"$nulls":3},{"v":250,"d":"250 kn"},{"v":810,"d":"810 kn"}]
[null,null,"Grand Total",{"v":685,"d":"685 kn"},{"v":95,"d":"95 kn"},{"v":20,"d":"20 kn"},{"v":125,"d":"125 kn"},{"v":375,"d":"375 kn"},{"v":1300,"d":"1,300 kn"}]
{"$rows_empty":84}
[null,"Datum","Kupac","Vrsta","Iznos"]
[null,"2017-01-01","Tata","Darovi",{"v":95,"d":"95 kn"}]
[null,"2017-01-15","Mama","Namirnice",{"v":325,"d":"325 kn"}]
[null,"2017-01-17","Mama","Ulaznice",{"v":250,"d":"250 kn"}]
[null,"2017-01-21","Tata","Namirnice",{"v":125,"d":"125 kn"}]
[null,"2017-02-02","Mama","Namirnice",{"v":235,"d":"235 kn"}]
[null,"2017-02-20","Ivana","Glazba",{"v":20,"d":"20 kn"}]
[null,"2017-02-25","Ivana","Ulaznice",{"v":125,"d":"125 kn"}]
[null,"2017-02-25","Ivana","Sport",{"v":125,"d":"125 kn"}]

{"sheet":"6","index":6,"n_rows":3,"n_cols":1,"rows_kept":3}
["Nemojte to učiniti sada, ali za nekoliko koraka radit ćete sa zaokretnom tablicom. Najprije ćete stvoriti pojedinost u polju Stupci. Da biste to učinili, polje Vrsta postavite u područje polja Stupci."]
["Na slici popisa polja zaokretne tablice prikazan je pokazivač u obliku strelice koji povlači polje Vrsta na područje Stupci."]
["Da biste prešli na sljedeći list vodiča, pritisnite CTRL + PAGE DOWN. Da biste se vratili na prethodni list, pritisnite CTRL + PAGE UP."]

{"sheet":"7","index":7,"n_rows":108,"n_cols":8,"rows_kept":108}
["1. U ovom se primjeru područje zaokretne tablice proteže od ćelije B13 do ćelije C17. Pomaknite se na jednu od tih ćelija."]
["2. Pritisnite ALT + JN, L2 da biste otvorili popis Polja zaokretne tablice. Fokus će prema zadanom biti na tekstnom okviru za pretraživanje: Uredi „Pretraživanje“"]
["3. Pritišćite tipke sa strelicama da biste odabrali polje Vrsta. Kada ga odaberete, pritisnite RAZMAKNICU da biste polje Vrsta dodali u područje Reci. "]
["4. Pritisnite tabulator da biste odabrali polje Vrsta. Pritisnite Enter pa pritisnite tipke sa strelicama da biste odabrali Premjesti u natpise stupaca, a zatim pritisnite Enter da biste dodali polje Vrsta u područje Stupci. Pritisnite ALT + JN + L2 da biste zatvorili okno Polja zaokretne tablice."]
["Da biste nastavili s vodičem, pritisnite CTRL + PAGE DOWN. Da biste se vratili na prethodni list, pritisnite CTRL + PAGE UP."]
[]
[]
[]
[{"$nulls":7},{"$f":"IF(AND($B$14=\"Kupac\",$H$17=810),\"Bravo! Postavili ste prvo \",\" \")","v":" "}]
[{"$nulls":7},{"$f":"IF(AND($B$14=\"Kupac\",$H$17=810),\"polje stupca. Kliknite \",\" \")","v":" "}]
[{"$nulls":7},{"$f":"IF(AND($B$14=\"Kupac\",$H$17=810),\"Sljedeće da biste nastavili...\",\" \")","v":" "}]
[]
[null,"Kupac","Zbroj iznosa"]
[null,"Tata",{"v":220,"d":"220 kn"}]
[null,"Ivana",{"v":270,"d":"270 kn"}]
[null,"Mama",{"v":810,"d":"810 kn"}]
[null,"Grand Total",{"v":1300,"d":"1,300 kn"}]
{"$rows_empty":82}
[null,"Datum","Kupac","Vrsta","Iznos"]
[null,"2017-01-01","Tata","Darovi",{"v":95,"d":"95 kn"}]
[null,"2017-01-15","Mama","Namirnice",{"v":325,"d":"325 kn"}]
[null,"2017-01-17","Mama","Ulaznice",{"v":250,"d":"250 kn"}]
[null,"2017-01-21","Tata","Namirnice",{"v":125,"d":"125 kn"}]
[null,"2017-02-02","Mama","Namirnice",{"v":235,"d":"235 kn"}]
[null,"2017-02-20","Ivana","Glazba",{"v":20,"d":"20 kn"}]
[null,"2017-02-25","Ivana","Ulaznice",{"v":125,"d":"125 kn"}]
[null,"2017-02-25","Ivana","Sport",{"v":125,"d":"125 kn"}]

{"sheet":"8","index":8,"n_rows":108,"n_cols":9,"rows_kept":108}
["Pregledajmo zaokretnu tablicu koju ste upravo stvorili, ali sada smo dodali posebne boje da bismo razlikovali polja retka, stupca i vrijednosti."]
["Polje retka proteže se od ćelije C10 do C13 i žute je boje."]
["Polje stupca proteže se od ćelije D9 do H10 i narančaste je boje."]
["Polje vrijednosti proteže se od ćelije D11 do H13 i plave je boje."]
["Da biste prešli na sljedeći list vodiča, pritisnite CTRL + PAGE DOWN. Da biste se vratili na prethodni list, pritisnite CTRL + PAGE UP."]
[]
[]
[]
[null,null,"Zbroj iznosa","Vrsta"]
[null,null,"Kupac","Namirnice","Darovi","Glazba","Sport","Ulaznice","Grand Total"]
[null,null,"Tata",{"v":125,"d":"125 kn"},{"v":95,"d":"95 kn"},{"$nulls":3},{"v":220,"d":"220 kn"}]
[null,null,"Ivana",null,null,{"v":20,"d":"20 kn"},{"v":125,"d":"125 kn"},{"v":125,"d":"125 kn"},{"v":270,"d":"270 kn"}]
[null,null,"Mama",{"v":560,"d":"560 kn"},{"$nulls":3},{"v":250,"d":"250 kn"},{"v":810,"d":"810 kn"}]
[null,null,"Grand Total",{"v":685,"d":"685 kn"},{"v":95,"d":"95 kn"},{"v":20,"d":"20 kn"},{"v":125,"d":"125 kn"},{"v":375,"d":"375 kn"},{"v":1300,"d":"1,300 kn"}]
{"$rows_empty":85}
[null,"Datum","Kupac","Vrsta","Iznos"]
[null,"2017-01-01","Tata","Darovi",{"v":95,"d":"95 kn"}]
[null,"2017-01-15","Mama","Namirnice",{"v":325,"d":"325 kn"}]
[null,"2017-01-17","Mama","Ulaznice",{"v":250,"d":"250 kn"}]
[null,"2017-01-21","Tata","Namirnice",{"v":125,"d":"125 kn"}]
[null,"2017-02-02","Mama","Namirnice",{"v":235,"d":"235 kn"}]
[null,"2017-02-20","Ivana","Glazba",{"v":20,"d":"20 kn"}]
[null,"2017-02-25","Ivana","Ulaznice",{"v":125,"d":"125 kn"}]
[null,"2017-02-25","Ivana","Sport",{"v":125,"d":"125 kn"}]

{"sheet":"9","index":9,"n_rows":3,"n_cols":1,"rows_kept":3}
["Evo kako to još možete učiniti: Polje retka nalazi se na lijevoj strani, a polje stupca pri vrhu. Svako polje sadrži uvjet za polje vrijednosti koje ih zbraja."]
["Konceptualna slika prikazuje četverodijelno pravokutno područje s poljem Redak žute boje u donjem lijevom kutu, polje stupac narančaste boje u gornjem desnom kutu i polje Vrijednost plave boje u donjem desnom kutu."]
["Da biste prešli na sljedeći list vodiča, pritisnite CTRL + PAGE DOWN. Da biste se vratili na prethodni list, pritisnite CTRL + PAGE UP."]

{"sheet":"10","index":10,"n_rows":3,"n_cols":1,"rows_kept":3}
["Uzmite to u obzir prilikom korištenja popisa polja. Polje retka nalazi se na lijevoj strani, a polje stupca pri vrhu. Svako polje sadrži uvjet za polje vrijednosti koje ih zbraja."]
["Konceptualna slika prikazuje popis Polja zaokretne tablice s poljem Redak žute boje u donjem lijevom kutu, polje stupac narančaste boje u gornjem desnom kutu i polje Vrijednost plave boje u donjem desnom kutu."]
["Da biste prešli na sljedeći list vodiča, pritisnite CTRL + PAGE DOWN. Da biste se vratili na prethodni list, pritisnite CTRL + PAGE UP."]

{"sheet":"11","index":11,"n_rows":121,"n_cols":24,"rows_kept":121}
["Imajte na umu sljedeće: ako polje stupca dodaje mnogo stupaca u zaokretnu tablicu, ona će se jako proširiti. "]
["U ovom se primjeru zaokretna tablica proteže od ćelije C10 do ćelije X15 jer je polje stupca dodalo 20 novih stupaca. To je mnogo stupaca! Korisnici će se morati mnogo pomicati..."]
["Da biste prešli na sljedeći list vodiča, pritisnite CTRL + PAGE DOWN. Da biste se vratili na prethodni list, pritisnite CTRL + PAGE UP."]
[]
[]
[]
[]
[]
[]
[null,null,"Zbroj iznosa","Vrsta"]
[null,null,"Kupac","Cijena zrakoplovne karte","Članarine","Elektronički uređaji","Glazba","Glazbena poduka","Gorivo","Knjige","Liječnički troškovi","Namirnice","Odjeća","Osiguranje automobila","Osiguranje kućanstva","Parkiranje","Porezi","Restorani","Sport","Struja","Ulaznice","Zdravstveno automobila","Zubar","Grand Total"]
[null,null,"Tata",{"v":500,"d":"500 kn"},{"$nulls":12},{"v":500,"d":"500 kn"},null,{"v":1000,"d":"1,000 kn"},{"$nulls":4},{"v":2000,"d":"2,000 kn"}]
[null,null,"Ivana",null,null,{"v":125,"d":"125 kn"},{"v":20,"d":"20 kn"},{"v":250,"d":"250 kn"},null,{"v":250,"d":"250 kn"},null,null,{"v":125,"d":"125 kn"},null,null,{"v":20,"d":"20 kn"},null,{"v":20,"d":"20 kn"},null,null,{"v":125,"d":"125 kn"},null,null,{"v":935,"d":"935 kn"}]
[null,null,"Mama",null,{"v":125,"d":"125 kn"},{"$nulls":3},{"v":74,"d":"74 kn"},null,{"v":74,"d":"74 kn"},{"v":470,"d":"470 kn"},null,{"v":74,"d":"74 kn"},{"v":235,"d":"235 kn"},{"$nulls":4},{"v":70,"d":"70 kn"},null,{"v":70,"d":"70 kn"},{"v":235,"d":"235 kn"},{"v":1427,"d":"1,427 kn"}]
[null,null,"Grand Total",{"v":500,"d":"500 kn"},{"v":125,"d":"125 kn"},{"v":125,"d":"125 kn"},{"v":20,"d":"20 kn"},{"v":250,"d":"250 kn"},{"v":74,"d":"74 kn"},{"v":250,"d":"250 kn"},{"v":74,"d":"74 kn"},{"v":470,"d":"470 kn"},{"v":125,"d":"125 kn"},{"v":74,"d":"74 kn"},{"v":235,"d":"235 kn"},{"v":20,"d":"20 kn"},{"v":500,"d":"500 kn"},{"v":20,"d":"20 kn"},{"v":1000,"d":"1,000 kn"},{"v":70,"d":"70 kn"},{"v":125,"d":"125 kn"},{"v":70,"d":"70 kn"},{"v":235,"d":"235 kn"},{"v":4362,"d":"4,362 kn"}]
{"$rows_empty":84}
[null,"Datum","Kupac","Vrsta","Iznos"]
[null,"2017-01-17","Tata","Sport",{"v":1000,"d":"1,000 kn"}]
[null,"2017-01-17","Tata","Cijena zrakoplovne karte",{"v":500,"d":"500 kn"}]
[null,"2017-01-17","Tata","Porezi",{"v":500,"d":"500 kn"}]
[null,"2017-02-20","Ivana","Glazba",{"v":20,"d":"20 kn"}]
[null,"2017-02-25","Ivana","Ulaznice",{"v":125,"d":"125 kn"}]
[null,"2017-01-21","Ivana","Knjige",{"v":250,"d":"250 kn"}]
[null,"2017-02-20","Ivana","Restorani",{"v":20,"d":"20 kn"}]
[null,"2017-02-25","Ivana","Odjeća",{"v":125,"d":"125 kn"}]
[null,"2017-01-21","Ivana","Glazbena poduka",{"v":250,"d":"250 kn"}]
[null,"2017-02-20","Ivana","Parkiranje",{"v":20,"d":"20 kn"}]
[null,"2017-02-25","Ivana","Elektronički uređaji",{"v":125,"d":"125 kn"}]
[null,"2017-01-01","Mama","Gorivo",{"v":74,"d":"74 kn"}]
[null,"2017-01-15","Mama","Namirnice",{"v":235,"d":"235 kn"}]
[null,"2017-01-21","Mama","Članarine",{"v":125,"d":"125 kn"}]
[null,"2017-02-02","Mama","Namirnice",{"v":235,"d":"235 kn"}]
[null,"2017-01-01","Mama","Liječnički troškovi",{"v":74,"d":"74 kn"}]
[null,"2017-01-15","Mama","Struja",{"v":70,"d":"70 kn"}]
[null,"2017-02-02","Mama","Zubar",{"v":235,"d":"235 kn"}]
[null,"2017-01-01","Mama","Osiguranje automobila",{"v":74,"d":"74 kn"}]
[null,"2017-01-15","Mama","Zdravstveno automobila",{"v":70,"d":"70 kn"}]
[null,"2017-02-02","Mama","Osiguranje kućanstva",{"v":235,"d":"235 kn"}]

{"sheet":"12","index":12,"n_rows":119,"n_cols":5,"rows_kept":119}
["Za vrlo široke zaokretne tablice postoji alternativa: koristite drugo polje retka. Drugo polje retka pojavit će se uvučeno ispod prvo polja retka."]
["U ovom se primjeru zaokretna tablica proteže od ćelije D8 do polja E32. Vrijednosti Tata, Ivana i Mama prikazuju se kao prva polja retka u stupcu D. Vrste troškova prikazuju se ispod njih kao druga polje retka sa stavkama kao što su Sport, Cijena zrakoplovne karte, Restorani itd."]
["DOBRO JE ZNATI\nS drugo polje retka usmjerenje zaokretne tablice postaje okomito. Nekim je korisnicima jednostavnije čitati okomitu zaokretnu tablicu jer je ne moraju stalno pomicati lijevo-desno."]
["LINGO APLIKACIJE EXCEL\nDrugo polje retka korisnici ponekad zovu \"sekundarno polje retka\"."]
["Da biste prešli na sljedeći list vodiča, pritisnite CTRL + PAGE DOWN. Da biste se vratili na prethodni list, pritisnite CTRL + PAGE UP."]
[]
[]
[{"$nulls":3},"Row Labels","Zbroj iznosa"]
[{"$nulls":3},"Tata",{"v":2000,"d":"2,000 kn"}]
[{"$nulls":3},"Sport",{"v":1000,"d":"1,000 kn"}]
[{"$nulls":3},"Porezi",{"v":500,"d":"500 kn"}]
[{"$nulls":3},"Cijena zrakoplovne karte",{"v":500,"d":"500 kn"}]
[{"$nulls":3},"Ivana",{"v":935,"d":"935 kn"}]
[{"$nulls":3},"Knjige",{"v":250,"d":"250 kn"}]
[{"$nulls":3},"Glazba",{"v":20,"d":"20 kn"}]
[{"$nulls":3},"Ulaznice",{"v":125,"d":"125 kn"}]
[{"$nulls":3},"Restorani",{"v":20,"d":"20 kn"}]
[{"$nulls":3},"Parkiranje",{"v":20,"d":"20 kn"}]
[{"$nulls":3},"Elektronički uređaji",{"v":125,"d":"125 kn"}]
[{"$nulls":3},"Odjeća",{"v":125,"d":"125 kn"}]
[{"$nulls":3},"Glazbena poduka",{"v":250,"d":"250 kn"}]
[{"$nulls":3},"Mama",{"v":1427,"d":"1,427 kn"}]
[{"$nulls":3},"Namirnice",{"v":470,"d":"470 kn"}]
[{"$nulls":3},"Gorivo",{"v":74,"d":"74 kn"}]
[{"$nulls":3},"Struja",{"v":70,"d":"70 kn"}]
[{"$nulls":3},"Liječnički troškovi",{"v":74,"d":"74 kn"}]
[{"$nulls":3},"Zubar",{"v":235,"d":"235 kn"}]
[{"$nulls":3},"Osiguranje automobila",{"v":74,"d":"74 kn"}]
[{"$nulls":3},"Članarine",{"v":125,"d":"125 kn"}]
[{"$nulls":3},"Zdravstveno automobila",{"v":70,"d":"70 kn"}]
[{"$nulls":3},"Osiguranje kućanstva",{"v":235,"d":"235 kn"}]
[{"$nulls":3},"Grand Total",{"v":4362,"d":"4,362 kn"}]
{"$rows_empty":65}
[null,"Datum","Kupac","Vrsta","Iznos"]
[null,"2017-01-17","Tata","Sport",{"v":1000,"d":"1,000 kn"}]
[null,"2017-01-17","Tata","Cijena zrakoplovne karte",{"v":500,"d":"500 kn"}]
[null,"2017-01-17","Tata","Porezi",{"v":500,"d":"500 kn"}]
[null,"2017-02-20","Ivana","Glazba",{"v":20,"d":"20 kn"}]
[null,"2017-02-25","Ivana","Ulaznice",{"v":125,"d":"125 kn"}]
[null,"2017-01-21","Ivana","Knjige",{"v":250,"d":"250 kn"}]
[null,"2017-02-20","Ivana","Restorani",{"v":20,"d":"20 kn"}]
[null,"2017-02-25","Ivana","Odjeća",{"v":125,"d":"125 kn"}]
[null,"2017-01-21","Ivana","Glazbena poduka",{"v":250,"d":"250 kn"}]
[null,"2017-02-20","Ivana","Parkiranje",{"v":20,"d":"20 kn"}]
[null,"2017-02-25","Ivana","Elektronički uređaji",{"v":125,"d":"125 kn"}]
[null,"2017-01-01","Mama","Gorivo",{"v":74,"d":"74 kn"}]
[null,"2017-01-15","Mama","Namirnice",{"v":235,"d":"235 kn"}]
[null,"2017-01-21","Mama","Članarine",{"v":125,"d":"125 kn"}]
[null,"2017-02-02","Mama","Namirnice",{"v":235,"d":"235 kn"}]
[null,"2017-01-01","Mama","Liječnički troškovi",{"v":74,"d":"74 kn"}]
[null,"2017-01-15","Mama","Struja",{"v":70,"d":"70 kn"}]
[null,"2017-02-02","Mama","Zubar",{"v":235,"d":"235 kn"}]
[null,"2017-01-01","Mama","Osiguranje automobila",{"v":74,"d":"74 kn"}]
[null,"2017-01-15","Mama","Zdravstveno automobila",{"v":70,"d":"70 kn"}]
[null,"2017-02-02","Mama","Osiguranje kućanstva",{"v":235,"d":"235 kn"}]

{"sheet":"13","index":13,"n_rows":3,"n_cols":1,"rows_kept":3}
["Na sljedećem listu dodat ćete drugo polje retka. To ćete učiniti postavljanjem polja Vrsta ispod polja Kupac u polju Redak."]
["Na slici popisa polja zaokretne tablice prikazan je pokazivač u obliku strelice koji povlači polje Vrsta na područje Reci."]
["Da biste prešli na sljedeći list vodiča, pritisnite CTRL + PAGE DOWN. Da biste se vratili na prethodni list, pritisnite CTRL + PAGE UP."]

{"sheet":"14","index":14,"n_rows":122,"n_cols":9,"rows_kept":122}
["1. U ovom se primjeru područje zaokretne tablice proteže od ćelije B13 do ćelije C17. Pomaknite se na jednu od tih ćelija. "]
["2. Pritisnite ALT + JN, L2 da biste otvorili popis polja zaokretne tablice. Fokus će prema zadanom biti na tekstnom okviru za pretraživanje: \"Upišite riječi koje želite pretražiti\". Nemojte ništa upisivati, nego samo jedanput pritisnite tipku tabulatora. NAPOMENA: ako se popis polja ne pokrene, ponovno pritisnite kombinaciju tipki ALT + JN, L2."]
["3. Pritišćite tipke sa strelicama da biste se pomaknuli do polja Vrsta. Pritisnite RAZMAKNICU da biste dodali polje Vrsta u područje Reci. "]
["4. Pritisnite tipku ESC da biste izašli iz okna Polja zaokretne tablice. "]
["Da biste prešli na sljedeći list vodiča, pritisnite CTRL + PAGE DOWN. Da biste se vratili na prethodni list, pritisnite CTRL + PAGE UP.",{"$nulls":7},{"$f":"IF(AND($B$15=\"Cijena zrakoplovne karte\",$C$36=235),\"Izvrsno vam ide! Dodali ste \",\" \")","v":" "}]
[{"$nulls":8},{"$f":"IF(AND($B$15=\"Cijena zrakoplovne karte\",$C$36=235),\"drugo polje retka u zaokretnu \",\" \")","v":" "}]
[{"$nulls":8},{"$f":"IF(AND($B$15=\"Cijena zrakoplovne karte\",$C$36=235),\"tablicu. Pomaknite se prema \",\" \")","v":" "}]
[{"$nulls":8},{"$f":"IF(AND($B$15=\"Cijena zrakoplovne karte\",$C$36=235),\"dolje i kliknite Sljedeće...\",\" \")","v":" "}]
[]
[]
[]
[]
[null,"Row Labels","Zbroj iznosa"]
[null,"Tata",{"v":2000,"d":"2,000 kn"}]
[null,"Ivana",{"v":935,"d":"935 kn"}]
[null,"Mama",{"v":1427,"d":"1,427 kn"}]
[null,"Grand Total",{"v":4362,"d":"4,362 kn"}]
{"$rows_empty":83}
[null,"Datum","Kupac","Vrsta","Iznos"]
[null,"2017-01-17","Tata","Sport",{"v":1000,"d":"1,000 kn"}]
[null,"2017-01-17","Tata","Cijena zrakoplovne karte",{"v":500,"d":"500 kn"}]
[null,"2017-01-17","Tata","Porezi",{"v":500,"d":"500 kn"}]
[null,"2017-02-20","Ivana","Glazba",{"v":20,"d":"20 kn"}]
[null,"2017-02-25","Ivana","Ulaznice",{"v":125,"d":"125 kn"}]
[null,"2017-01-21","Ivana","Knjige",{"v":250,"d":"250 kn"}]
[null,"2017-02-20","Ivana","Restorani",{"v":20,"d":"20 kn"}]
[null,"2017-02-25","Ivana","Odjeća",{"v":125,"d":"125 kn"}]
[null,"2017-01-21","Ivana","Glazbena poduka",{"v":250,"d":"250 kn"}]
[null,"2017-02-20","Ivana","Parkiranje",{"v":20,"d":"20 kn"}]
[null,"2017-02-25","Ivana","Elektronički uređaji",{"v":125,"d":"125 kn"}]
[null,"2017-01-01","Mama","Gorivo",{"v":74,"d":"74 kn"}]
[null,"2017-01-15","Mama","Namirnice",{"v":235,"d":"235 kn"}]
[null,"2017-01-21","Mama","Članarine",{"v":125,"d":"125 kn"}]
[null,"2017-02-02","Mama","Namirnice",{"v":235,"d":"235 kn"}]
[null,"2017-01-01","Mama","Liječnički troškovi",{"v":74,"d":"74 kn"}]
[null,"2017-01-15","Mama","Struja",{"v":70,"d":"70 kn"}]
[null,"2017-02-02","Mama","Zubar",{"v":235,"d":"235 kn"}]
[null,"2017-01-01","Mama","Osiguranje automobila",{"v":74,"d":"74 kn"}]
[null,"2017-01-15","Mama","Zdravstveno automobila",{"v":70,"d":"70 kn"}]
[null,"2017-02-02","Mama","Osiguranje kućanstva",{"v":235,"d":"235 kn"}]

{"sheet":"15","index":15,"n_rows":121,"n_cols":7,"rows_kept":121}
["Ako morate pojednostavniti zaokretnu tablicu, sažmite podatke za drugo polje retka i uklonite ih. "]
["U ovom se primjeru zaokretna tablica proteže od ćelije F7 do ćelije G31. Odaberite ćeliju F8 da biste odabrali prvo polje retka za vrijednost Tata. Zatim pritisnite kombinaciju tipku Alt + JN > J da biste proširili drugo polje ili S1 da biste ga saželi."]
["Da biste nastavili s vodičem, pritisnite CTRL + PAGE DOWN. Da biste se vratili na prethodni list, pritisnite CTRL + PAGE UP."]
[]
[]
[{"$nulls":5},{"$f":"IF(AND($F$9=\"Ivana\",$G$9=935),\"Odlično!\",\" \")","v":" "}]
[{"$nulls":5},"Row Labels","Zbroj iznosa"]
[{"$nulls":5},"Tata",{"v":2000,"d":"2,000 kn"}]
[{"$nulls":5},"Sport",{"v":1000,"d":"1,000 kn"}]
[{"$nulls":5},"Porezi",{"v":500,"d":"500 kn"}]
[{"$nulls":5},"Cijena zrakoplovne karte",{"v":500,"d":"500 kn"}]
[{"$nulls":5},"Ivana",{"v":935,"d":"935 kn"}]
[{"$nulls":5},"Knjige",{"v":250,"d":"250 kn"}]
[{"$nulls":5},"Glazba",{"v":20,"d":"20 kn"}]
[{"$nulls":5},"Ulaznice",{"v":125,"d":"125 kn"}]
[{"$nulls":5},"Restorani",{"v":20,"d":"20 kn"}]
[{"$nulls":5},"Parkiranje",{"v":20,"d":"20 kn"}]
[{"$nulls":5},"Elektronički uređaji",{"v":125,"d":"125 kn"}]
[{"$nulls":5},"Odjeća",{"v":125,"d":"125 kn"}]
[{"$nulls":5},"Glazbena poduka",{"v":250,"d":"250 kn"}]
[{"$nulls":5},"Mama",{"v":1427,"d":"1,427 kn"}]
[{"$nulls":5},"Namirnice",{"v":470,"d":"470 kn"}]
[{"$nulls":5},"Gorivo",{"v":74,"d":"74 kn"}]
[{"$nulls":5},"Struja",{"v":70,"d":"70 kn"}]
[{"$nulls":5},"Liječnički troškovi",{"v":74,"d":"74 kn"}]
[{"$nulls":5},"Zubar",{"v":235,"d":"235 kn"}]
[{"$nulls":5},"Osiguranje automobila",{"v":74,"d":"74 kn"}]
[{"$nulls":5},"Članarine",{"v":125,"d":"125 kn"}]
[{"$nulls":5},"Zdravstveno automobila",{"v":70,"d":"70 kn"}]
[{"$nulls":5},"Osiguranje kućanstva",{"v":235,"d":"235 kn"}]
[{"$nulls":5},"Grand Total",{"v":4362,"d":"4,362 kn"}]
{"$rows_empty":68}
[null,"Datum","Kupac","Vrsta","Iznos"]
[null,"2017-01-17","Tata","Sport",{"v":1000,"d":"1,000 kn"}]
[null,"2017-01-17","Tata","Cijena zrakoplovne karte",{"v":500,"d":"500 kn"}]
[null,"2017-01-17","Tata","Porezi",{"v":500,"d":"500 kn"}]
[null,"2017-02-20","Ivana","Glazba",{"v":20,"d":"20 kn"}]
[null,"2017-02-25","Ivana","Ulaznice",{"v":125,"d":"125 kn"}]
[null,"2017-01-21","Ivana","Knjige",{"v":250,"d":"250 kn"}]
[null,"2017-02-20","Ivana","Restorani",{"v":20,"d":"20 kn"}]
[null,"2017-02-25","Ivana","Odjeća",{"v":125,"d":"125 kn"}]
[null,"2017-01-21","Ivana","Glazbena poduka",{"v":250,"d":"250 kn"}]
[null,"2017-02-20","Ivana","Parkiranje",{"v":20,"d":"20 kn"}]
[null,"2017-02-25","Ivana","Elektronički uređaji",{"v":125,"d":"125 kn"}]
[null,"2017-01-01","Mama","Gorivo",{"v":74,"d":"74 kn"}]
[null,"2017-01-15","Mama","Namirnice",{"v":235,"d":"235 kn"}]
[null,"2017-01-21","Mama","Članarine",{"v":125,"d":"125 kn"}]
[null,"2017-02-02","Mama","Namirnice",{"v":235,"d":"235 kn"}]
[null,"2017-01-01","Mama","Liječnički troškovi",{"v":74,"d":"74 kn"}]
[null,"2017-01-15","Mama","Struja",{"v":70,"d":"70 kn"}]
[null,"2017-02-02","Mama","Zubar",{"v":235,"d":"235 kn"}]
[null,"2017-01-01","Mama","Osiguranje automobila",{"v":74,"d":"74 kn"}]
[null,"2017-01-15","Mama","Zdravstveno automobila",{"v":70,"d":"70 kn"}]
[null,"2017-02-02","Mama","Osiguranje kućanstva",{"v":235,"d":"235 kn"}]

{"sheet":"16","index":16,"n_rows":121,"n_cols":7,"rows_kept":121}
["Da biste zaokretnu tablicu učinili još jednostavnijom, sažmite ili proširite cijelo drugo polje retka."]
["Ovdje je ključ"]
["Odaberite raspon podataka zaokretne tablice od ćelije F7 do ćelije G31, a zatim odaberite ALT + JN > S1 da biste saželi cijelu grupu. Da biste proširili cijelu grupu, odaberite ALT + JN > J."]
["Da biste prešli na sljedeći list vodiča, pritisnite CTRL + PAGE DOWN. Da biste se vratili na prethodni list, pritisnite CTRL + PAGE UP."]
[]
[{"$nulls":5},{"$f":"IF(AND($F$9=\"Ivana\",$G$9=935),\"Bravo!\",\" \")","v":" "}]
[{"$nulls":5},"Row Labels","Zbroj iznosa"]
[{"$nulls":5},"Tata",{"v":2000,"d":"2,000 kn"}]
[{"$nulls":5},"Sport",{"v":1000,"d":"1,000 kn"}]
[{"$nulls":5},"Porezi",{"v":500,"d":"500 kn"}]
[{"$nulls":5},"Cijena zrakoplovne karte",{"v":500,"d":"500 kn"}]
[{"$nulls":5},"Ivana",{"v":935,"d":"935 kn"}]
[{"$nulls":5},"Knjige",{"v":250,"d":"250 kn"}]
[{"$nulls":5},"Glazba",{"v":20,"d":"20 kn"}]
[{"$nulls":5},"Ulaznice",{"v":125,"d":"125 kn"}]
[{"$nulls":5},"Restorani",{"v":20,"d":"20 kn"}]
[{"$nulls":5},"Parkiranje",{"v":20,"d":"20 kn"}]
[{"$nulls":5},"Elektronički uređaji",{"v":125,"d":"125 kn"}]
[{"$nulls":5},"Odjeća",{"v":125,"d":"125 kn"}]
[{"$nulls":5},"Glazbena poduka",{"v":250,"d":"250 kn"}]
[{"$nulls":5},"Mama",{"v":1427,"d":"1,427 kn"}]
[{"$nulls":5},"Namirnice",{"v":470,"d":"470 kn"}]
[{"$nulls":5},"Gorivo",{"v":74,"d":"74 kn"}]
[{"$nulls":5},"Struja",{"v":70,"d":"70 kn"}]
[{"$nulls":5},"Liječnički troškovi",{"v":74,"d":"74 kn"}]
[{"$nulls":5},"Zubar",{"v":235,"d":"235 kn"}]
[{"$nulls":5},"Osiguranje automobila",{"v":74,"d":"74 kn"}]
[{"$nulls":5},"Članarine",{"v":125,"d":"125 kn"}]
[{"$nulls":5},"Zdravstveno automobila",{"v":70,"d":"70 kn"}]
[{"$nulls":5},"Osiguranje kućanstva",{"v":235,"d":"235 kn"}]
[{"$nulls":5},"Grand Total",{"v":4362,"d":"4,362 kn"}]
{"$rows_empty":68}
[null,"Datum","Kupac","Vrsta","Iznos"]
[null,"2017-01-17","Tata","Sport",{"v":1000,"d":"1,000 kn"}]
[null,"2017-01-17","Tata","Cijena zrakoplovne karte",{"v":500,"d":"500 kn"}]
[null,"2017-01-17","Tata","Porezi",{"v":500,"d":"500 kn"}]
[null,"2017-02-20","Ivana","Glazba",{"v":20,"d":"20 kn"}]
[null,"2017-02-25","Ivana","Ulaznice",{"v":125,"d":"125 kn"}]
[null,"2017-01-21","Ivana","Knjige",{"v":250,"d":"250 kn"}]
[null,"2017-02-20","Ivana","Restorani",{"v":20,"d":"20 kn"}]
[null,"2017-02-25","Ivana","Odjeća",{"v":125,"d":"125 kn"}]
[null,"2017-01-21","Ivana","Glazbena poduka",{"v":250,"d":"250 kn"}]
[null,"2017-02-20","Ivana","Parkiranje",{"v":20,"d":"20 kn"}]
[null,"2017-02-25","Ivana","Elektronički uređaji",{"v":125,"d":"125 kn"}]
[null,"2017-01-01","Mama","Gorivo",{"v":74,"d":"74 kn"}]
[null,"2017-01-15","Mama","Namirnice",{"v":235,"d":"235 kn"}]
[null,"2017-01-21","Mama","Članarine",{"v":125,"d":"125 kn"}]
[null,"2017-02-02","Mama","Namirnice",{"v":235,"d":"235 kn"}]
[null,"2017-01-01","Mama","Liječnički troškovi",{"v":74,"d":"74 kn"}]
[null,"2017-01-15","Mama","Struja",{"v":70,"d":"70 kn"}]
[null,"2017-02-02","Mama","Zubar",{"v":235,"d":"235 kn"}]
[null,"2017-01-01","Mama","Osiguranje automobila",{"v":74,"d":"74 kn"}]
[null,"2017-01-15","Mama","Zdravstveno automobila",{"v":70,"d":"70 kn"}]
[null,"2017-02-02","Mama","Osiguranje kućanstva",{"v":235,"d":"235 kn"}]

{"sheet":"17","index":17,"n_rows":107,"n_cols":13,"rows_kept":107}
["Koristiti možete i više polja stupca. I njih je moguće sažeti ili proširiti."]
["U ovom se primjeru zaokretna tablica proteže od ćelije B13 do ćelije M19. U ovom slučaju imamo kategoriju Vrsta u odjeljku Stupci, koja obuhvaća stavke vrijednosti Namirnice i Režije."]
["ISPROBAJTE OVO\nOdaberite Namirnice u ćeliji C14, a zatim ALT + JT > S1 da biste saželi cijelo polje. Da biste ga proširili, odaberite ALT + JT > J."]
["Da biste prešli na sljedeći list vodiča, pritisnite CTRL + PAGE DOWN. Da biste se vratili na prethodni list, pritisnite CTRL + PAGE UP."]
{"$rows_empty":7}
[null,null,{"$f":"IF(AND($C$16=398,$D$15=\"Sij\"),\"Dobro obavljeno!\",\" \")","v":" "}]
[null,"Zbroj iznosa","Column Labels"]
[null,null,"Namirnice",{"$nulls":3},"Namirnice Total","Režije",{"$nulls":3},"Režije Total","Grand Total"]
[null,"Row Labels","Sij","Velj","Ožu","Tra",null,"Sij","Velj","Ožu","Tra"]
[null,"Ivana",{"v":74,"d":"74 kn"},{"v":74,"d":"74 kn"},{"v":125,"d":"125 kn"},{"v":125,"d":"125 kn"},{"v":398,"d":"398 kn"},{"$nulls":5},{"v":398,"d":"398 kn"}]
[null,"Tata",{"v":235,"d":"235 kn"},{"v":235,"d":"235 kn"},{"v":235,"d":"235 kn"},{"v":74,"d":"74 kn"},{"v":779,"d":"779 kn"},{"$nulls":5},{"v":779,"d":"779 kn"}]
[null,"Mama",{"$nulls":5},{"v":1000,"d":"1,000 kn"},{"v":1000,"d":"1,000 kn"},{"v":20,"d":"20 kn"},{"v":70,"d":"70 kn"},{"v":2090,"d":"2,090 kn"},{"v":2090,"d":"2,090 kn"}]
[null,"Grand Total",{"v":309,"d":"309 kn"},{"v":309,"d":"309 kn"},{"v":360,"d":"360 kn"},{"v":199,"d":"199 kn"},{"v":1177,"d":"1,177 kn"},{"v":1000,"d":"1,000 kn"},{"v":1000,"d":"1,000 kn"},{"v":20,"d":"20 kn"},{"v":70,"d":"70 kn"},{"v":2090,"d":"2,090 kn"},{"v":3267,"d":"3,267 kn"}]
{"$rows_empty":75}
[null,"Mjesec","Kupac","Vrsta","Iznos"]
[null,"Sij","Ivana","Namirnice",{"v":74,"d":"74 kn"}]
[null,"Sij","Tata","Namirnice",{"v":235,"d":"235 kn"}]
[null,"Sij","Mama","Režije",{"v":1000,"d":"1,000 kn"}]
[null,"Velj","Ivana","Namirnice",{"v":74,"d":"74 kn"}]
[null,"Velj","Tata","Namirnice",{"v":235,"d":"235 kn"}]
[null,"Velj","Mama","Režije",{"v":1000,"d":"1,000 kn"}]
[null,"Ožu","Ivana","Namirnice",{"v":125,"d":"125 kn"}]
[null,"Ožu","Tata","Namirnice",{"v":235,"d":"235 kn"}]
[null,"Ožu","Mama","Režije",{"v":20,"d":"20 kn"}]
[null,"Tra","Ivana","Namirnice",{"v":125,"d":"125 kn"}]
[null,"Tra","Tata","Namirnice",{"v":74,"d":"74 kn"}]
[null,"Tra","Mama","Režije",{"v":70,"d":"70 kn"}]

{"sheet":"18","index":18,"n_rows":146,"n_cols":5,"rows_kept":146}
["Imajte na umu sljedeće: Ako su vam potrebne dodatne pojedinosti, možete dodati polja retka ili polja stupca. U ovom su primjeru tri polja retka."]
["Zaokretna tablica u ovom primjeru proteže se od ćelije D8 do E29 i sadrži polja za vrijednosti Godišnje doba, Kupac i Vrsta u stupcu D, s vrijednošću Zbroj iznosa u stupcu E."]
["SAVJET STRUČNJAKA\nTo što je moguće dodati mnogo polja, ne znači da to morate svakako učiniti. U ovom primjeru to funkcionira. No ponekad previše polja, sa svim uvlakama, može zaokretnu tablicu učiniti suviše složenom za ostale korisnike. "]
["Da biste prešli na sljedeći list vodiča, pritisnite CTRL + PAGE DOWN. Da biste se vratili na prethodni list, pritisnite CTRL + PAGE UP."]
[]
[]
[]
[{"$nulls":3},"Row Labels","Zbroj iznosa"]
[{"$nulls":3},"Jesen",{"v":5425,"d":"5,425 kn"}]
[{"$nulls":3},"Mama",{"v":5425,"d":"5,425 kn"}]
[{"$nulls":3},"Osiguranje",{"v":1272,"d":"1,272 kn"}]
[{"$nulls":3},"Stanarina",{"v":3220,"d":"3,220 kn"}]
[{"$nulls":3},"Režije",{"v":933,"d":"933 kn"}]
[{"$nulls":3},"Proljeće",{"v":4760,"d":"4,760 kn"}]
[{"$nulls":3},"Tata",{"v":4760,"d":"4,760 kn"}]
[{"$nulls":3},"Osiguranje",{"v":1040,"d":"1,040 kn"}]
[{"$nulls":3},"Stanarina",{"v":2400,"d":"2,400 kn"}]
[{"$nulls":3},"Režije",{"v":1320,"d":"1,320 kn"}]
[{"$nulls":3},"Ljeto",{"v":3473,"d":"3,473 kn"}]
[{"$nulls":3},"Mama",{"v":3473,"d":"3,473 kn"}]
[{"$nulls":3},"Osiguranje",{"v":1080,"d":"1,080 kn"}]
[{"$nulls":3},"Stanarina",{"v":1260,"d":"1,260 kn"}]
[{"$nulls":3},"Režije",{"v":1133,"d":"1,133 kn"}]
[{"$nulls":3},"Zima",{"v":4100,"d":"4,100 kn"}]
[{"$nulls":3},"Tata",{"v":4100,"d":"4,100 kn"}]
[{"$nulls":3},"Osiguranje",{"v":1030,"d":"1,030 kn"}]
[{"$nulls":3},"Stanarina",{"v":1420,"d":"1,420 kn"}]
[{"$nulls":3},"Režije",{"v":1650,"d":"1,650 kn"}]
[{"$nulls":3},"Grand Total",{"v":17758,"d":"17,758 kn"}]
{"$rows_empty":68}
[null,"Kupac","Godišnje doba","Vrsta","Iznos"]
[null,"Tata","Zima","Osiguranje",{"v":300,"d":"300 kn"}]
[null,"Tata","Zima","Stanarina",{"v":200,"d":"200 kn"}]
[null,"Tata","Zima","Režije",{"v":400,"d":"400 kn"}]
[null,"Tata","Zima","Osiguranje",{"v":300,"d":"300 kn"}]
[null,"Tata","Zima","Stanarina",{"v":800,"d":"800 kn"}]
[null,"Tata","Zima","Režije",{"v":400,"d":"400 kn"}]
[null,"Tata","Zima","Osiguranje",{"v":200,"d":"200 kn"}]
[null,"Tata","Zima","Stanarina",{"v":300,"d":"300 kn"}]
[null,"Tata","Zima","Režije",{"v":450,"d":"450 kn"}]
[null,"Tata","Zima","Osiguranje",{"v":230,"d":"230 kn"}]
[null,"Tata","Zima","Stanarina",{"v":120,"d":"120 kn"}]
[null,"Tata","Zima","Režije",{"v":400,"d":"400 kn"}]
[null,"Tata","Proljeće","Osiguranje",{"v":210,"d":"210 kn"}]
[null,"Tata","Proljeće","Stanarina",{"v":300,"d":"300 kn"}]
[null,"Tata","Proljeće","Režije",{"v":400,"d":"400 kn"}]
[null,"Tata","Proljeće","Osiguranje",{"v":230,"d":"230 kn"}]
[null,"Tata","Proljeće","Stanarina",{"v":900,"d":"900 kn"}]
[null,"Tata","Proljeće","Režije",{"v":300,"d":"300 kn"}]
[null,"Tata","Proljeće","Osiguranje",{"v":200,"d":"200 kn"}]
[null,"Tata","Proljeće","Stanarina",{"v":1000,"d":"1,000 kn"}]
[null,"Tata","Proljeće","Režije",{"v":220,"d":"220 kn"}]
[null,"Tata","Proljeće","Osiguranje",{"v":400,"d":"400 kn"}]
[null,"Tata","Proljeće","Stanarina",{"v":200,"d":"200 kn"}]
[null,"Tata","Proljeće","Režije",{"v":400,"d":"400 kn"}]
[null,"Mama","Ljeto","Osiguranje",{"v":100,"d":"100 kn"}]
[null,"Mama","Ljeto","Stanarina",{"v":30,"d":"30 kn"}]
[null,"Mama","Ljeto","Režije",{"v":123,"d":"123 kn"}]
[null,"Mama","Ljeto","Osiguranje",{"v":300,"d":"300 kn"}]
[null,"Mama","Ljeto","Stanarina",{"v":350,"d":"350 kn"}]
[null,"Mama","Ljeto","Režije",{"v":230,"d":"230 kn"}]
[null,"Mama","Ljeto","Osiguranje",{"v":120,"d":"120 kn"}]
[null,"Mama","Ljeto","Stanarina",{"v":640,"d":"640 kn"}]
[null,"Mama","Ljeto","Režije",{"v":530,"d":"530 kn"}]
[null,"Mama","Ljeto","Osiguranje",{"v":560,"d":"560 kn"}]
[null,"Mama","Ljeto","Stanarina",{"v":240,"d":"240 kn"}]
[null,"Mama","Ljeto","Režije",{"v":250,"d":"250 kn"}]
[null,"Mama","Jesen","Osiguranje",{"v":62,"d":"62 kn"}]
[null,"Mama","Jesen","Stanarina",{"v":600,"d":"600 kn"}]
[null,"Mama","Jesen","Režije",{"v":340,"d":"340 kn"}]
[null,"Mama","Jesen","Osiguranje",{"v":205,"d":"205 kn"}]
[null,"Mama","Jesen","Stanarina",{"v":500,"d":"500 kn"}]
[null,"Mama","Jesen","Režije",{"v":403,"d":"403 kn"}]
[null,"Mama","Jesen","Osiguranje",{"v":503,"d":"503 kn"}]
[null,"Mama","Jesen","Stanarina",{"v":2000,"d":"2,000 kn"}]
[null,"Mama","Jesen","Režije",{"v":140,"d":"140 kn"}]
[null,"Mama","Jesen","Osiguranje",{"v":502,"d":"502 kn"}]
[null,"Mama","Jesen","Stanarina",{"v":120,"d":"120 kn"}]
[null,"Mama","Jesen","Režije",{"v":50,"d":"50 kn"}]

{"sheet":"19","index":19,"n_rows":55,"n_cols":5,"rows_kept":55}
["Jeste li spremni za još vježbi? U nastavku pregledajte podatke u ćelijama od B7 do E55. Kada ste spremni, idite na sljedeći list i vježbajte što ste naučili dosad. "]
["Ne morate pregledavati sve retke podataka. Pregledajte nazive polja u retku 7. Koristit ćete ih na sljedećem listu. "]
["Da biste prešli na sljedeći list vodiča, pritisnite CTRL + PAGE DOWN. Da biste se vratili na prethodni list, pritisnite CTRL + PAGE UP."]
[]
[]
[]
[null,"Godišnje doba","Prodajni predstavnik","Proizvod","Broj prodanih artikala"]
[null,"Zima","Jelica","Naranče",300]
[null,"Zima","Tin","Grejpfrut",200]
[null,"Zima","Dean","Jabuke",400]
[null,"Zima","Jelica","Banane",300]
[null,"Zima","Tin","Naranče",800]
[null,"Zima","Dean","Grejpfrut",400]
[null,"Zima","Jelica","Jabuke",200]
[null,"Zima","Tin","Banane",300]
[null,"Zima","Dean","Naranče",450]
[null,"Zima","Jelica","Grejpfrut",230]
[null,"Zima","Tin","Jabuke",120]
[null,"Zima","Dean","Banane",400]
[null,"Proljeće","Jelica","Cikla",210]
[null,"Proljeće","Tin","Krumpir",300]
[null,"Proljeće","Dean","Zelena salata",400]
[null,"Proljeće","Jelica","Rotkva",230]
[null,"Proljeće","Tin","Cikla",900]
[null,"Proljeće","Dean","Krumpir",300]
[null,"Proljeće","Jelica","Zelena salata",200]
[null,"Proljeće","Tin","Rotkva",1000]
[null,"Proljeće","Dean","Cikla",220]
[null,"Proljeće","Jelica","Krumpir",400]
[null,"Proljeće","Tin","Zelena salata",200]
[null,"Proljeće","Dean","Rotkva",400]
[null,"Ljeto","Jelica","Borovnice",100]
[null,"Ljeto","Tin","Jagode",30]
[null,"Ljeto","Dean","Grožđe",123]
[null,"Ljeto","Jelica","Bundeve",300]
[null,"Ljeto","Tin","Borovnice",350]
[null,"Ljeto","Dean","Jagode",230]
[null,"Ljeto","Jelica","Grožđe",120]
[null,"Ljeto","Tin","Bundeve",640]
[null,"Ljeto","Dean","Borovnice",530]
[null,"Ljeto","Jelica","Jagode",560]
[null,"Ljeto","Tin","Grožđe",240]
[null,"Ljeto","Dean","Bundeve",250]
[null,"Jesen","Jelica","Muškatna bundeva",62]
[null,"Jesen","Tin","Tikvice",600]
[null,"Jesen","Dean","Jabuke",340]
[null,"Jesen","Jelica","Naranče",205]
[null,"Jesen","Tin","Muškatna bundeva",500]
[null,"Jesen","Dean","Tikvice",403]
[null,"Jesen","Jelica","Jabuke",503]
[null,"Jesen","Tin","Naranče",2000]
[null,"Jesen","Dean","Muškatna bundeva",140]
[null,"Jesen","Jelica","Tikvice",502]
[null,"Jesen","Tin","Jabuke",120]
[null,"Jesen","Dean","Naranče",50]

{"sheet":"20","index":20,"n_rows":17,"n_cols":11,"rows_kept":17}
["1. U ovom se primjeru područje zaokretne tablice proteže od ćelije B12 do ćelije C17. Pomaknite se na jednu od tih ćelija. \n\n"]
["2. Pritisnite ALT + JN, L2 da biste otvorili popis polja zaokretne tablice. Fokus će prema zadanom biti na tekstnom okviru za pretraživanje: \"Upišite riječi koje želite pretražiti\". Nemojte ništa upisivati, nego samo jedanput pritisnite tipku tabulatora. NAPOMENA: ako se popis polja ne pokrene, ponovno pritisnite kombinaciju tipki ALT + JN, L2."]
["3. Pomaknite se do polja Prodajni predstavnik pomoću tipki sa strelicama. Pritisnite RAZMAKNICU da biste polje Prodajni predstavnik dodali u područje Reci. Ako želite prikazati pojedinosti vrijednosti Prodajni predstavnik u području Stupci, pomaknite se do polja Prodajni predstavnik u odjeljku Redak pomoću tabulatora, a zatim pritisnite RAZMAKNICU i odaberite \"Premjesti u natpise stupaca\". Pritisnite tipku ESC da biste izašli iz okna Polja zaokretne tablice. "]
["4. Utvrdite tko je prodao najviše artikala tijekom jeseni, a zatim odaberite ćeliju K8. "]
["Da biste prešli na sljedeći list vodiča, pritisnite CTRL + PAGE DOWN. Da biste se vratili na prethodni list, pritisnite CTRL + PAGE UP."]
[]
[{"$nulls":10},"Odaberite jedno:"]
[]
[{"$nulls":10},{"$f":"IF($K$8=\"Tin\",\"Tako je!\",IF($K$8=\"Dean\",\"Pokušajte ponovno...\",IF($K$8=\"Jelica\",\"Ne baš...\",IF($K$8=\" \",\" \",\" \"))))","v":" "}]
[]
[]
[null,"Row Labels","Zbroj prodanih artikala"]
[null,"Jesen",{"v":5425,"d":"5,425"}]
[null,"Proljeće",{"v":4760,"d":"4,760"}]
[null,"Ljeto",{"v":3473,"d":"3,473"}]
[null,"Zima",{"v":4100,"d":"4,100"}]
[null,"Grand Total",{"v":17758,"d":"17,758"}]

{"sheet":"21","index":21,"n_rows":14,"n_cols":10,"rows_kept":14}
["1. Kliknite ćeliju B13 da biste aktivirali zaokretnu tablicu pod nazivom \"Zbroj prodanih artikala\".\n\n"]
["2. Pritisnite ALT + JN, L2 da biste otvorili popis polja zaokretne tablice. Fokus će prema zadanom biti na tekstnom okviru za pretraživanje: \"Upišite riječi koje želite pretražiti\". Nemojte ništa upisivati, nego samo jedanput pritisnite tipku tabulatora. NAPOMENA: ako se popis polja ne pokrene, ponovno pritisnite kombinaciju tipki ALT + JN, L2."]
["3. Pomoći tipki sa strelicama i RAZMAKNICE proširite primjer u okomitu zaokretnu tablicu koja sadrži godišnja doba na lijevoj strani, a prodajni su predstavnici uvučeni ispod njih. Da biste zatvorili okno Polja zaokretne tablice, pritisnite tipku ESC. "]
["Da biste prešli na sljedeći list vodiča, pritisnite CTRL + PAGE DOWN. Da biste se vratili na prethodni list, pritisnite CTRL + PAGE UP."]
[{"$nulls":9},{"$f":"IF(AND(B$14=\"Jesen\",$C$17=3220),\"Bravo! Postavili se sekundarno \",\" \")","v":" "}]
[{"$nulls":9},{"$f":"IF(AND(B$14=\"Jesen\",$C$17=3220),\"polje retka. Sada se pomaknite \",\" \")","v":" "}]
[{"$nulls":9},{"$f":"IF(AND(B$14=\"Jesen\",$C$17=3220),\"prema dolje i kliknite Sljedeće...\",\" \")","v":" "}]
[]
[]
[]
[]
[]
[null,"Zbroj prodanih artikala"]
[null,{"v":17758,"d":"17,758"}]

{"sheet":"22","index":22,"n_rows":14,"n_cols":10,"rows_kept":14}
["1. Kliknite ćeliju B13 da biste aktivirali zaokretnu tablicu pod nazivom \"Zbroj prodanih artikala\"."]
["2. Pritisnite ALT + JN, L2 da biste otvorili popis polja zaokretne tablice. Fokus će prema zadanom biti na tekstnom okviru za pretraživanje: \"Upišite riječi koje želite pretražiti\". Nemojte ništa upisivati, nego samo jedanput pritisnite tipku tabulatora. NAPOMENA: ako se popis polja ne pokrene, ponovno pritisnite kombinaciju tipki ALT + JN, L2."]
["3. Pomoću tipki sa strelicama i RAZMAKNICE izmijenite primjer tako da se svaki proizvod prikazuje u vlastitom retku, a svako godišnje doba u vlastitom stupcu."]
["Da biste prešli na sljedeći list vodiča, pritisnite CTRL + PAGE DOWN. Da biste se vratili na prethodni list, pritisnite CTRL + PAGE UP.",{"$nulls":8},{"$f":"IF(AND($B$15=\"Banane\",$G$28=800),\"Bravo! Postavili ste polje \",\" \")","v":" "}]
[{"$nulls":9},{"$f":"IF(AND($B$15=\"Banane\",$G$28=800),\"retka na lijevu stranu \",\" \")","v":" "}]
[{"$nulls":9},{"$f":"IF(AND($B$15=\"Banane\",$G$28=800),\"i polje stupca s četiri nova \",\" \")","v":" "}]
[{"$nulls":9},{"$f":"IF(AND($B$15=\"Banane\",$G$28=800),\"stupca. Pomaknite se prema \",\" \")","v":" "}]
[{"$nulls":9},{"$f":"IF(AND($B$15=\"Banane\",$G$28=800),\"dolje i kliknite Sljedeće...\",\" \")","v":" "}]
[]
[]
[]
[]
[null,"Zbroj prodanih artikala"]
[null,{"v":17758,"d":"17,758"}]

{"sheet":"23","index":23,"n_rows":16,"n_cols":18,"rows_kept":16}
["1. Kliknite ćeliju B13 da biste aktivirali zaokretnu tablicu pod nazivom \"Zbroj prodanih artikala\".\n\n"]
["2. Pritisnite ALT + JN, L2 da biste otvorili popis polja zaokretne tablice. Fokus će prema zadanom biti na tekstnom okviru za pretraživanje: \"Upišite riječi koje želite pretražiti\". Nemojte ništa upisivati, nego samo jedanput pritisnite tipku tabulatora. NAPOMENA: ako se popis polja ne pokrene, ponovno pritisnite kombinaciju tipki ALT + JN, L2."]
["3. Pomoću tabulatora, tipki sa strelicama i RAZMAKNICE izmijenite primjer tako da se prodajni predstavnici pojavljuju s lijeve strane, a godišnja doba ispod njih."]
["Da biste prešli na sljedeći list vodiča, pritisnite CTRL + PAGE DOWN. Da biste se vratili na prethodni list, pritisnite CTRL + PAGE UP."]
[{"$nulls":9},{"$f":"IF(AND($B$14=\"Dean\",$C$14=5036),\"Bravo! Sada je jednostavnije čitati \",\" \")","v":" "}]
[{"$nulls":9},{"$f":"IF(AND($B$14=\"Dean\",$C$14=5036),\"podatke. Pomaknite se prema \",\" \")","v":" "}]
[{"$nulls":9},{"$f":"IF(AND($B$14=\"Dean\",$C$14=5036),\"dolje i kliknite Sljedeće...\",\" \")","v":" "}]
[]
[]
[]
[]
[]
[null,null,"Column Labels"]
[null,null,"Dean",{"$nulls":3},"Dean Total","Tin",{"$nulls":3},"Tin Total","Jelica",{"$nulls":3},"Jelica Total","Grand Total"]
[null,null,"Jesen","Proljeće","Ljeto","Zima",null,"Jesen","Proljeće","Ljeto","Zima",null,"Jesen","Proljeće","Ljeto","Zima"]
[null,"Zbroj prodanih artikala",933,{"v":1320,"d":"1,320"},{"v":1133,"d":"1,133"},{"v":1650,"d":"1,650"},{"v":5036,"d":"5,036"},{"v":3220,"d":"3,220"},{"v":2400,"d":"2,400"},{"v":1260,"d":"1,260"},{"v":1420,"d":"1,420"},{"v":8300,"d":"8,300"},{"v":1272,"d":"1,272"},{"v":1040,"d":"1,040"},{"v":1080,"d":"1,080"},{"v":1030,"d":"1,030"},{"v":4422,"d":"4,422"},{"v":17758,"d":"17,758"}]

{"sheet":"24","index":24,"n_rows":14,"n_cols":9,"rows_kept":14}
["1. Kliknite ćeliju B13 da biste aktivirali zaokretnu tablicu pod nazivom \"Zbroj prodanih artikala\"."]
["2. Pritisnite ALT + JN, L2 da biste otvorili popis polja zaokretne tablice. Fokus će prema zadanom biti na tekstnom okviru za pretraživanje: \"Upišite riječi koje želite pretražiti\". Nemojte ništa upisivati, nego samo jedanput pritisnite tipku tabulatora. NAPOMENA: ako se popis polja ne pokrene, ponovno pritisnite kombinaciju tipki ALT + JN, L2."]
["3. Pomoću tabulatora, tipki sa strelicama i RAZMAKNICE izmijenite primjer tako da svaki prodajni predstavnik ima vlastita polja stupca, da im godišnja doba budu s lijeve strane, a proizvodi uvučeni ispod njih."]
["4. Odaberite ćeliju I9 te koliko je grejpfruta Dean prodao tijekom zime."]
["Da biste prešli na sljedeći list vodiča, pritisnite CTRL + PAGE DOWN. Da biste se vratili na prethodni list, pritisnite CTRL + PAGE UP."]
[]
[]
[{"$nulls":8},"Odaberite jedno:"]
[]
[{"$nulls":8},{"$f":"IF($I$9=400,\"Tako je!\",IF($I$9=530,\"Pokušajte ponovno...\",IF($I$9=123,\"Ne baš...\",\" \")))","v":" "}]
[]
[]
[null,"Zbroj prodanih artikala"]
[null,{"v":17758,"d":"17,758"}]

{"sheet":"Saznajte više","index":25,"n_rows":7,"n_cols":1,"rows_kept":7}
["Sjajno. Nisu li zaokretne tablice fantastične?"]
["Potičemo vas da ih nastavite koristiti! Imamo još zanimljivosti..."]
["Dodatne informacije o zaokretnim elementima\nOtkrijte dodatne mogućnosti u ovom korisnom članku o zaokretnim tablicama."]
["O osvježavanju\nPročitajte ovaj važan članak o osvježavanju zaokretnih tablica. "]
["Zajednica\npovežite se s drugim korisnicima programa Excel. U zajednici si međusobno možete pomoći."]
[]
[" "]